bitfinex/quotes_ETHUSD_20240621
["timestamp","ask_amount","ask_price","bid_price","bid_amount"]
[1718938961957,2.82152048,3511.7,3511.0,3.0]
[1718938962858,2.48852048,3511.7,3511.0,3.0]
[1718938963156,2.48856199,3511.7,3511.0,3.0]
[1718938964345,0.4933004,3511.7,3511.0,3.0]
[1718938964537,1.35911549,3511.7,3511.0,3.0]
[1718938964731,1.35911549,3511.7,3511.3,2.2659]
[1718938964928,1.35911549,3512.0,3511.3,2.2659]
[1718938965152,1.35911549,3511.9,3511.3,2.2659]
[1718938966165,1.35926515,3511.9,3511.3,2.2659]
[1718938967361,1.52678402,3511.9,3511.3,2.2659]
[1718938969028,1.35926515,3511.8,3511.3,2.2659]
[1718938969257,1.35928028,3511.8,3511.3,2.2659]
[1718938971859,1.35928028,3511.7,3511.3,2.2659]
[1718938972370,0.31592359,3512.2,3511.3,2.2659]
[1718938972584,0.31592359,3512.2,3511.0,3.0]
[1718938972867,0.31592359,3512.2,3511.0,5.3506]
[1718938975770,0.49321915,3512.4,3511.0,5.3506]
[1718938976076,1.35899024,3511.8,3511.6,2.5810669]
[1718938976230,1.35899024,3511.7,3511.6,2.5810669]
[1718938976437,1.35899024,3511.7,3511.6,3.1208669]
[1718938976636,2.4636,3512.1,3511.6,0.1208669]
[1718938976885,0.49321915,3512.0,3511.6,0.1208669]
[1718938977460,2.4636,3512.1,3511.6,0.1208669]
[1718938977461,0.49321915,3511.9,3511.6,0.1208669]
[1718938977643,0.49321915,3511.8,3511.6,0.1208669]
[1718938977871,0.49321915,3512.0,3511.6,0.1208669]
[1718938978182,0.80604106,3511.9,3511.6,0.1208669]
[1718938978348,0.49321915,3511.8,3511.6,0.1208669]
[1718938978549,0.49321915,3511.7,3511.6,0.1208669]
[1718938978767,0.49329474,3511.8,3511.6,0.1208669]
[1718938978941,0.31282191,3511.9,3511.6,0.1208669]
[1718938979278,0.27764219,3511.8,3511.6,0.1208669]
[1718938980354,3.821,3512.7,3511.6,0.1208669]
[1718938980562,3.0,3513.2,3511.6,0.1208669]
[1718938980563,2.4505,3512.6,3511.6,0.1208669]
[1718938981262,4.1645,3512.6,3511.6,0.1208669]
[1718938981731,2.4505,3512.6,3511.6,0.1208669]
[1718938981936,2.69555,3512.6,3511.6,0.1208669]
[1718938982357,4.40955,3512.6,3511.6,0.1208669]
[1718938982558,2.69555,3512.6,3511.6,0.1208669]
[1718938982946,2.07145669,3512.5,3511.6,0.1208669]
[1718938983147,1.714,3512.2,3511.6,0.1208669]
[1718938983473,1.714,3511.8,3511.6,0.1208669]
[1718938983773,3.78545669,3511.7,3511.6,0.1208669]
[1718938984275,4.33545669,3511.7,3511.6,0.1208669]
[1718938984582,5.22600236,3511.7,3511.6,0.1208669]
[1718938985282,5.22600236,3511.7,3510.4,9.6681]
[1718938985476,3.78545669,3511.6,3510.4,9.6681]
[1718938985671,2.07145669,3511.5,3510.4,9.6681]
[1718938986273,2.07145669,3511.5,3510.5,3.0]
[1718938986438,0.52260024,3511.4,3510.5,3.0]
[1718938986638,2.07145669,3511.3,3510.5,3.0]
[1718938987272,1.35832765,3510.7,3510.5,3.0]
[1718938987569,1.35832765,3510.8,3510.5,3.0]
[1718938987798,1.35832765,3510.8,3510.6,0.52981]
[1718938987981,1.35832765,3510.8,3510.5,3.0]
[1718938988166,1.35832765,3510.8,3510.4,2.2981]
[1718938988353,1.35832765,3510.9,3510.4,2.2981]
[1718938988760,1.35832765,3511.0,3510.4,2.2981]
[1718938988968,1.35832765,3511.0,3510.5,0.22981]
[1718938989274,1.35832765,3511.0,3510.5,3.22981]
[1718938989771,1.35832765,3511.1,3510.5,3.22981]
[1718938989978,1.35832765,3511.1,3510.6,2.4981]
[1718938990330,2.07196606,3511.0,3510.5,0.22981]
[1718938990443,0.74999999,3512.2,3510.0,2.4981]
[1718938990444,1.35897027,3510.6,3510.0,2.4981]
[1718938991484,1.35913742,3511.3,3510.0,2.4981]
[1718938991641,1.35895754,3510.6,3510.1,2.21481]
[1718938991844,1.35895754,3510.6,3510.1,5.21481]
[1718938992248,2.07216172,3510.5,3510.1,5.21481]
[1718938992650,1.35895754,3510.7,3510.1,5.21481]
[1718938992850,2.07215818,3510.6,3510.1,5.21481]
[1718938993048,3.92447954,3510.6,3510.2,1.508291]
[1718938993354,1.35913742,3511.3,3510.2,1.508291]
[1718938993355,2.07215818,3510.5,3510.2,4.508291]
[1718938993563,2.07215818,3510.4,3510.2,4.508291]
[1718938993944,1.35889556,3510.6,3510.2,4.508291]
[1718938994145,2.0721726,3510.5,3510.2,4.508291]
[1718938994343,2.0721726,3510.5,3510.2,3.0]
[1718938994546,2.0721726,3510.5,3510.1,5.21481]
[1718938995372,2.0721726,3510.4,3510.1,5.21481]
[1718938995576,1.35889556,3510.7,3510.1,5.21481]
[1718938995794,1.35889556,3511.0,3510.3,2.2807]
[1718938995995,2.07191531,3510.9,3510.3,3.0]
[1718938996181,1.35913742,3511.3,3510.5,2.2807]
[1718938996182,1.35889556,3511.2,3510.5,2.2807]
[1718938996486,2.07170769,3511.1,3510.7,2.2807]
[1718938996667,2.71845114,3511.3,3510.7,5.2807]
[1718938996851,2.07170128,3511.2,3510.7,5.2807]
[1718938998992,1.35913742,3511.3,3510.8,2.107]
[1718938999193,1.35913742,3511.3,3511.0,2.2807]
[1718938999498,1.35913742,3511.3,3510.9,1.58573053]
[1718938999499,1.35913742,3511.3,3511.2,4.3877]
[1718938999701,1.35966923,3512.3,3511.5,2.2807]
[1718938999899,0.4930733,3513.4,3511.7,2.2807]
[1718939000197,0.4930733,3513.4,3511.6,3.33129147]
[1718939000198,2.07083888,3513.3,3511.9,4.3877]
[1718939000402,0.49304886,3513.2,3511.9,4.3877]
[1718939000701,2.07083888,3513.1,3512.0,3.0]
[1718939000900,0.49304427,3513.0,3512.1,1.53077]
[1718939001198,2.07083888,3512.9,3512.1,1.53077]
[1718939001400,0.4930733,3513.4,3512.3,2.107]
[1718939001701,2.0707237,3513.3,3512.4,2.2807]
[1718939001869,2.0707237,3513.3,3512.5,0.73877]
[1718939002566,2.0707237,3513.3,3512.5,3.73877]
[1718939003220,0.4930733,3513.4,3512.5,3.73877]
[1718939005588,0.49296733,3514.2,3512.5,3.73877]
[1718939005778,2.07049992,3514.1,3512.6,7.37]
[1718939005970,2.07049992,3514.1,3512.7,4.338947]
[1718939006177,2.07049992,3514.0,3512.7,4.338947]
[1718939006411,2.07049992,3513.9,3512.7,4.338947]
[1718939006635,2.2957,3514.3,3512.7,4.338947]
[1718939006900,2.0704792,3514.2,3512.8,1.2447717]
[1718939007410,2.0704792,3514.2,3512.5,3.73877]
[1718939007715,2.0704792,3514.2,3512.6,2.3366]
[1718939007893,2.0704792,3514.2,3512.6,5.3366]
[1718939010073,2.2957,3514.3,3512.6,5.3366]
[1718939015685,0.2872238,3514.6,3512.7,2.3976]
[1718939015881,2.3491,3514.7,3512.9,2.3976]
[1718939016083,2.3491,3514.7,3512.9,5.3976]
[1718939016771,2.3491,3514.7,3513.0,2.3976]
[1718939016945,2.3491,3515.2,3513.5,2.3976]
[1718939017091,2.3491,3515.2,3513.4,2.107]
[1718939017092,2.4451,3516.1,3513.7,2.4458]
[1718939017416,2.3194,3515.9,3513.7,5.4458]
[1718939017714,2.56271074,3515.8,3513.7,5.4458]
[1718939017892,3.78385179,3515.7,3513.7,5.4458]
[1718939018093,2.56267523,3515.6,3513.7,5.4458]
[1718939018298,0.42766752,3515.5,3513.8,1.326626]
[1718939018525,1.714,3515.7,3513.8,4.326626]
[1718939019231,1.714,3515.5,3513.8,3.0]
[1718939019439,2.20682231,3515.5,3513.7,5.4458]
[1718939020238,2.20682231,3515.5,3513.7,3.0]
[1718939020239,3.821,3514.8,3513.7,3.0]
[1718939020579,1.714,3514.8,3513.7,3.0]
[1718939020780,0.1714,3514.7,3513.7,3.0]
[1718939021204,0.66432698,3514.7,3513.7,3.0]
[1718939021524,0.1714,3514.7,3513.7,3.0]
[1718939021738,0.1714,3514.7,3513.2,2.4986]
[1718939021739,0.49292698,3514.7,3513.2,2.4986]
[1718939021953,1.714,3514.8,3513.2,2.4986]
[1718939022433,0.49292698,3515.0,3513.2,2.4986]
[1718939022597,2.7686327,3514.9,3513.2,2.4986]
[1718939022797,2.20692698,3514.8,3513.2,2.4986]
[1718939024002,0.49292698,3514.8,3513.2,2.4986]
[1718939024241,0.5046327,3514.9,3513.2,2.4986]
[1718939024242,0.9975229,3514.9,3513.2,2.4986]
[1718939025321,0.99752175,3514.9,3513.2,2.4986]
[1718939025542,0.51579217,3514.8,3513.2,3.25916]
[1718939025732,0.51579217,3514.8,3513.3,3.0]
[1718939026110,2.22979217,3514.8,3513.3,3.0]
[1718939026308,0.49288905,3514.7,3513.3,3.0]
[1718939026510,2.4297,3514.6,3513.2,2.4986]
[1718939026711,1.00812717,3514.5,3513.2,2.4986]
[1718939027235,0.51523812,3514.5,3513.2,2.4986]
[1718939027446,1.00816281,3514.5,3513.2,2.4986]
[1718939027930,2.72216281,3514.5,3513.2,9.8686]
[1718939028131,2.3136,3514.2,3513.3,3.0]
[1718939028333,2.20692469,3514.1,3513.3,3.0]
[1718939028537,4.0276,3513.9,3513.3,3.0]
[1718939028709,4.0276,3513.9,3512.8,1.140775]
[1718939028710,2.20692469,3513.8,3512.8,1.140775]
[1718939029052,0.49292469,3513.7,3512.8,1.140775]
[1718939029256,0.45205247,3513.6,3512.8,1.140775]
[1718939029440,1.714,3513.4,3512.8,1.140775]
[1718939029642,0.49292469,3513.3,3512.8,1.140775]
[1718939029950,0.49292469,3513.2,3512.8,1.140775]
[1718939030279,0.49313782,3513.1,3512.5,3.0]
[1718939030421,0.27846378,3513.0,3512.5,3.0]
[1718939030619,0.27846378,3513.0,3512.1,3.0]
[1718939030859,0.27846378,3513.0,3512.0,7.37]
[1718939031221,0.3276016,3513.1,3512.0,7.37]
[1718939031420,0.26191016,3513.0,3512.0,7.37]
[1718939032251,0.26191016,3513.0,3512.1,3.0]
[1718939033457,1.714,3512.8,3512.1,3.0]
[1718939034071,1.714,3512.6,3512.0,7.37]
[1718939034371,4.91128134,3512.5,3512.0,7.37]
[1718939034524,2.83965257,3512.5,3512.0,7.37]
[1718939035418,2.07166882,3512.4,3512.1,3.0]
[1718939036821,2.07166882,3512.4,3511.3,3.0]
[1718939037036,0.66253214,3512.3,3511.3,3.0]
[1718939039368,2.4061,3512.5,3511.3,3.0]
[1718939039557,2.07155338,3512.4,3511.3,3.0]
[1718939039761,2.4061,3512.5,3511.3,3.0]
[1718939039961,2.07153421,3512.4,3511.3,3.0]
[1718939041480,0.49326456,3512.3,3511.3,3.0]
[1718939041687,2.74002409,3512.2,3511.3,3.0]
[1718939041859,2.07153421,3512.1,3511.3,3.0]
[1718939042261,0.66848988,3512.2,3511.3,3.0]
[1718939042777,2.07160077,3512.1,3511.3,3.0]
[1718939044050,0.29049288,3512.7,3511.4,2.4422]
[1718939044246,2.71623875,3512.6,3511.4,2.4422]
[1718939044442,2.07153946,3512.5,3511.4,2.4422]
[1718939045371,4.4425,3512.9,3511.4,2.4422]
[1718939045372,2.107,3512.9,3511.4,2.4422]
[1718939045548,2.0712177,3512.8,3511.4,2.4422]
[1718939045962,1.714,3513.3,3511.4,2.4422]
[1718939046161,2.47615622,3513.2,3511.5,1.49192]
[1718939046362,2.56434591,3513.1,3511.5,4.49192]
[1718939046567,2.07120622,3513.0,3511.5,4.49192]
[1718939046775,2.07120622,3512.9,3511.5,4.49192]
[1718939046961,2.3355,3513.4,3511.7,2.2922]
[1718939047162,2.56425429,3513.3,3511.7,2.2922]
[1718939047354,2.56425429,3513.2,3511.7,2.2922]
[1718939047672,2.07114151,3513.1,3511.7,2.2922]
[1718939047874,2.07114151,3513.0,3511.8,0.7444012]
[1718939048076,2.07114151,3512.9,3511.8,3.7444012]
[1718939048265,0.23355,3513.3,3511.8,3.7444012]
[1718939048466,2.07117336,3513.2,3511.8,3.7444012]
[1718939048665,2.07117336,3513.2,3511.9,0.66964932]
[1718939048860,0.49311993,3513.1,3511.9,0.66964932]
[1718939049066,2.07117336,3513.0,3511.9,0.66964932]
[1718939049457,0.23355,3513.3,3511.9,0.66964932]
[1718939049658,2.0711516,3513.2,3511.9,0.66964932]
[1718939049851,0.49311528,3513.1,3512.0,0.59618493]
[1718939050060,2.0711516,3513.0,3512.0,0.59618493]
[1718939050559,0.23355,3513.3,3512.1,2.2861]
[1718939050795,4.14220787,3513.2,3512.1,5.2861]
[1718939050957,0.23355,3513.3,3512.2,3.52861]
[1718939050958,2.56425074,3513.1,3512.2,3.52861]
[1718939051158,2.07113914,3513.0,3512.2,0.52861]
[1718939051369,0.23355,3513.3,3512.2,3.52861]
[1718939051568,4.14217451,3513.2,3512.2,3.52861]
[1718939051774,4.63527955,3513.1,3512.2,3.52861]
[1718939052093,1.714,3513.7,3512.2,3.52861]
[1718939052265,4.14217392,3513.6,3512.2,3.52861]
[1718939052468,2.20710492,3513.7,3512.2,3.52861]
[1718939052469,4.63527884,3513.5,3512.2,3.52861]
[1718939052691,4.63527884,3513.4,3512.2,3.52861]
[1718939052905,4.63527884,3513.3,3512.2,3.52861]
[1718939053055,0.67776049,3513.6,3512.2,3.52861]
[1718939053056,7.02937884,3513.2,3512.2,3.0]
[1718939053389,4.63527884,3513.1,3512.1,5.2861]
[1718939053564,4.63527884,3513.0,3512.1,5.2861]
[1718939053768,0.49310492,3512.9,3512.1,5.2861]
[1718939053955,2.20710492,3513.1,3512.1,3.0]
[1718939054160,6.24939385,3513.0,3512.1,3.0]
[1718939054357,4.14239385,3512.9,3512.1,3.0]
[1718939054553,0.49315828,3512.8,3512.1,3.0]
[1718939054891,1.11466828,3512.9,3512.1,3.0]
[1718939055189,2.07127377,3512.8,3512.1,3.0]
[1718939055387,0.49315828,3512.7,3511.8,3.0]
[1718939055590,0.49315828,3512.9,3511.8,5.50135]
[1718939055793,0.49315828,3513.1,3511.8,5.50135]
[1718939055972,4.14236669,3513.0,3511.8,5.50135]
[1718939056291,0.49315828,3512.9,3511.8,5.50135]
[1718939056494,0.49315828,3513.1,3511.8,5.50135]
[1718939056662,2.53132732,3513.0,3511.8,5.50135]
[1718939056864,0.49315828,3512.9,3511.8,5.50135]
[1718939057192,0.46012583,3513.0,3511.8,5.50135]
[1718939058600,0.49314049,3513.2,3511.8,5.50135]
[1718939058897,2.07117431,3513.1,3511.8,3.0]
[1718939059074,2.56430498,3513.0,3511.8,3.0]
[1718939059274,2.56430498,3512.9,3511.8,3.0]
[1718939059487,0.49313067,3512.8,3511.8,3.0]
[1718939059798,0.49313067,3513.2,3511.8,3.0]
[1718939060105,2.50266076,3513.1,3511.8,3.0]
[1718939060266,2.56437836,3513.0,3511.8,3.0]
[1718939060466,2.56437836,3512.9,3511.8,3.0]
[1718939060714,0.49313067,3512.9,3511.8,3.0]
[1718939060862,0.43141307,3513.1,3511.8,3.0]
[1718939061074,2.28578908,3513.0,3511.8,3.0]
[1718939061291,2.56440459,3512.9,3511.8,3.0]
[1718939061478,0.49315682,3512.8,3511.8,3.0]
[1718939061679,0.21454131,3513.0,3511.8,3.0]
[1718939061879,2.07126295,3512.9,3511.8,3.0]
[1718939062091,0.81419424,3512.8,3511.8,3.0]
[1718939062478,0.21454131,3513.0,3511.8,3.0]
[1718939062675,2.07126395,3512.9,3511.8,3.0]
[1718939062875,0.49315682,3512.8,3511.8,3.0]
[1718939063300,0.21454131,3513.0,3511.8,3.0]
[1718939063598,2.07125058,3512.9,3511.8,3.0]
[1718939063777,0.76487732,3512.8,3511.8,3.0]
[1718939063978,2.07125058,3512.7,3511.8,3.0]
[1718939064300,0.49315809,3512.6,3511.8,3.0]
[1718939064794,0.21454131,3513.0,3511.8,3.0]
[1718939064966,2.07125192,3512.9,3511.8,3.0]
[1718939065161,0.76487872,3512.8,3511.8,3.0]
[1718939065371,2.07125192,3512.7,3511.8,3.0]
[1718939065608,0.49315809,3512.6,3511.8,3.0]
[1718939066099,0.21454131,3513.0,3511.8,3.0]
[1718939066294,2.07125192,3512.9,3511.8,3.0]
[1718939066503,0.81419453,3512.8,3511.8,3.0]
[1718939066804,2.07125192,3512.7,3511.8,3.0]
[1718939067018,0.49315809,3512.6,3511.8,3.0]
[1718939067219,2.07125192,3512.5,3511.8,3.0]
[1718939067391,0.49315807,3512.4,3511.8,3.0]
[1718939067593,0.70769938,3513.0,3511.8,3.0]
[1718939067946,4.83522734,3512.9,3511.8,3.0]
[1718939068092,2.56442734,3512.8,3511.8,3.0]
[1718939068286,1.714,3512.6,3511.8,3.0]
[1718939068488,2.07126927,3512.5,3511.8,3.0]
[1718939068731,0.49315807,3512.4,3511.5,5.2632]
[1718939068933,3.20297007,3512.3,3511.5,5.2632]
[1718939069088,2.56442734,3512.2,3511.5,5.2632]
[1718939069291,2.56442734,3512.1,3511.5,2.2632]
[1718939069503,2.56442734,3512.0,3511.5,2.2632]
[1718939069731,2.56442734,3511.9,3511.5,2.2632]
[1718939069934,2.56442734,3511.8,3511.5,2.2632]
[1718939070263,2.07126927,3511.7,3511.5,2.2632]
[1718939070544,0.49325435,3512.2,3511.5,2.2632]
[1718939070700,2.07164599,3512.1,3511.5,5.2632]
[1718939070908,2.56490034,3512.0,3511.5,5.2632]
[1718939071214,2.56490034,3511.9,3511.5,5.2632]
[1718939071421,2.56490034,3511.8,3511.5,5.2632]
[1718939071615,0.63854273,3512.3,3511.5,5.2632]
[1718939071616,2.56490034,3511.7,3511.5,5.2632]
[1718939071810,2.56490034,3511.6,3511.5,5.2632]
[1718939073100,2.56490034,3511.6,3511.5,2.2632]
[1718939073500,2.56489191,3511.6,3511.5,2.2632]
[1718939076099,2.56489191,3511.6,3511.0,3.0]
[1718939076409,2.56489191,3511.5,3511.0,3.0]
[1718939076605,2.5649257,3511.4,3511.0,3.0]
[1718939076821,2.56493831,3511.3,3510.8,2.4764]
[1718939077129,2.07164599,3511.2,3510.8,3.76104]
[1718939077426,2.56493872,3511.1,3510.9,3.0]
[1718939077641,4.186,3512.2,3510.8,2.4764]
[1718939077642,2.07164599,3511.0,3510.8,2.4764]
[1718939077817,2.07164599,3510.9,3510.8,2.4764]
[1718939078734,2.07164599,3512.1,3510.8,2.4764]
[1718939078932,2.5649618,3512.0,3510.8,2.4764]
[1718939079125,2.5649618,3511.9,3510.8,2.4764]
[1718939079436,2.5649618,3511.8,3510.8,2.4764]
[1718939079744,0.48245427,3512.1,3510.8,2.4764]
[1718939079745,2.07164599,3511.7,3510.8,2.4764]
[1718939079898,2.07164599,3511.6,3510.8,2.4764]
[1718939080099,2.07164599,3511.6,3510.8,3.76104]
[1718939080330,2.56495047,3511.5,3510.9,3.0]
[1718939080522,2.56495047,3511.4,3510.9,3.0]
[1718939080737,2.56495047,3511.3,3510.9,3.0]
[1718939080931,2.07164599,3511.2,3510.9,3.0]
[1718939081117,2.07164599,3511.1,3510.9,3.676104]
[1718939081304,0.48245427,3512.1,3510.9,3.676104]
[1718939081504,2.07178926,3512.0,3510.9,3.676104]
[1718939081735,2.56506767,3511.9,3510.9,3.676104]
[1718939081904,2.56506767,3511.8,3510.9,3.676104]
[1718939082104,2.56506767,3511.7,3510.9,3.676104]
[1718939082433,2.56506767,3511.6,3510.9,3.676104]
[1718939082636,2.56506767,3511.5,3510.9,3.676104]
[1718939082841,2.56506767,3511.4,3510.9,3.676104]
[1718939083049,2.07178926,3511.3,3510.9,3.676104]
[1718939083340,2.56507048,3511.2,3510.9,3.0]
[1718939083634,2.56507048,3511.1,3510.6,3.0]
[1718939083823,2.56507048,3511.0,3510.5,9.7824]
[1718939084129,2.56507048,3510.9,3510.5,9.7824]
[1718939084333,2.56507048,3510.8,3510.5,9.7824]
[1718939084514,2.07178926,3510.7,3510.5,9.7824]
[1718939084719,2.07178926,3510.6,3510.5,2.4124]
[1718939084897,2.07178926,3511.4,3510.5,2.4124]
[1718939085102,2.56514707,3511.3,3510.5,2.4124]
[1718939085398,2.56514707,3511.2,3510.5,2.4124]
[1718939085598,2.56514707,3511.1,3510.5,2.4124]
[1718939085832,2.56514707,3511.0,3510.5,2.4124]
[1718939086141,2.07178926,3510.9,3510.0,3.0]
[1718939086339,2.07178926,3510.8,3510.0,3.0]
[1718939086516,2.56521192,3510.7,3510.0,3.0]
[1718939086707,2.56521192,3510.6,3510.0,3.0]
[1718939086908,2.56521192,3510.5,3510.0,3.0]
[1718939087109,2.07178926,3510.4,3510.0,4.26971]
[1718939087310,1.714,3511.3,3510.0,4.26971]
[1718939087654,2.07235574,3511.2,3510.0,3.0]
[1718939087803,1.3574926,3510.6,3510.0,3.0]
[1718939088004,2.07235574,3510.5,3510.0,3.0]
[1718939088801,1.3574926,3510.7,3510.0,3.0]
[1718939089160,2.07227282,3510.6,3510.1,1.26971]
[1718939089303,1.35747266,3510.7,3510.1,1.26971]
[1718939089503,2.07227336,3510.6,3510.1,1.26971]
[1718939090115,1.85089869,3510.5,3510.0,3.0]
[1718939090634,1.35747266,3510.6,3510.0,3.0]
[1718939090819,2.07236472,3510.5,3510.0,3.0]
[1718939091021,2.56579082,3510.5,3510.0,3.0]
[1718939091313,1.35747266,3510.7,3510.0,3.0]
[1718939091635,2.07231482,3510.6,3510.0,3.0]
[1718939091943,1.35747266,3510.7,3510.0,4.26971]
[1718939092310,2.4232,3511.4,3510.0,4.26971]
[1718939092512,1.3574545,3510.7,3510.0,4.26971]
[1718939092814,1.3574545,3510.9,3510.1,2.2745]
[1718939093007,1.3574545,3511.2,3510.3,2.2745]
[1718939093271,1.3574545,3511.3,3510.3,2.2745]
[1718939093454,0.49340132,3511.8,3510.3,5.2745]
[1718939093455,3.42938424,3511.2,3510.3,5.2745]
[1718939093738,0.49340132,3511.1,3510.3,5.2745]
[1718939093949,1.3574545,3511.2,3510.4,0.6876621]
[1718939094178,1.3574545,3511.2,3510.4,3.6876621]
[1718939094327,1.3574545,3511.1,3510.4,3.6876621]
[1718939094666,1.3574545,3511.2,3510.4,3.6876621]
[1718939094952,1.3574545,3511.1,3510.4,3.6876621]
[1718939095322,0.46174013,3511.7,3510.4,3.6876621]
[1718939095531,1.35770337,3511.1,3510.4,3.6876621]
[1718939096219,1.35770337,3511.2,3510.4,3.6876621]
[1718939096422,1.35770337,3511.1,3510.5,1.49342831]
[1718939096622,0.91370337,3511.1,3510.5,1.49342831]
[1718939096824,0.91370337,3511.1,3510.4,3.6876621]
[1718939096825,0.4933234,3511.8,3510.7,2.3858]
[1718939097036,2.07185316,3511.7,3510.7,5.3858]
[1718939097231,2.56517656,3511.6,3510.7,5.3858]
[1718939097433,0.4933234,3511.5,3510.7,5.3858]
[1718939097627,0.48245427,3512.1,3510.7,5.3858]
[1718939097824,2.07170663,3512.0,3510.8,0.6868359]
[1718939098025,0.4933234,3511.9,3511.2,2.3858]
[1718939098224,0.74999999,3513.9,3511.2,2.3858]
[1718939098225,2.107,3513.6,3511.2,2.3858]
[1718939098539,2.107,3513.6,3511.3,2.4179]
[1718939098540,4.86933207,3513.5,3511.3,2.4179]
[1718939098723,2.56443207,3513.4,3511.5,4.5249]
[1718939098930,3.26203266,3513.3,3511.6,0.50749]
[1718939099261,2.56439945,3513.2,3511.6,0.50749]
[1718939099447,2.56439945,3513.1,3511.6,3.50749]
[1718939099638,2.56439736,3513.0,3511.7,0.858239]
[1718939099980,2.56439736,3512.9,3511.7,0.858239]
[1718939100262,4.0486,3514.0,3511.9,2.107]
[1718939100422,2.56381048,3513.9,3512.0,2.3892]
[1718939100626,4.0486,3514.0,3512.1,0.74962]
[1718939100627,3.22505153,3513.8,3512.1,0.74962]
[1718939100862,2.56381048,3513.7,3512.1,3.74962]
[1718939101159,2.56379888,3513.6,3512.1,3.74962]
[1718939101460,2.56379888,3513.5,3512.1,3.74962]
[1718939101654,1.35851824,3513.2,3512.1,3.74962]
[1718939101855,1.85154743,3513.3,3512.2,0.824582]
[1718939102156,2.07075422,3513.2,3512.2,0.824582]
[1718939102541,1.35851824,3513.4,3512.2,0.824582]
[1718939102866,2.07073894,3513.3,3512.2,0.824582]
[1718939103029,2.07073894,3513.3,3512.3,0.6213782]
[1718939103452,1.35851824,3513.5,3512.3,0.6213782]
[1718939103652,2.07073229,3513.4,3512.3,0.6213782]
[1718939103855,2.07073229,3513.3,3512.3,0.6213782]
[1718939104058,1.35909632,3513.5,3512.4,1.09913782]
[1718939104261,2.07071982,3513.4,3512.5,0.04261982]
[1718939104427,2.07071982,3513.4,3512.3,0.6213782]
[1718939104428,0.34298161,3513.3,3512.3,0.6213782]
[1718939104629,1.35909632,3513.6,3512.3,0.6213782]
[1718939104869,2.07072504,3513.5,3512.3,0.6213782]
[1718939105756,1.35909632,3513.9,3512.4,2.3705]
[1718939106073,2.07062092,3513.8,3512.4,5.3705]
[1718939106273,2.45471191,3513.8,3512.5,0.80988782]
[1718939106484,0.38409099,3513.8,3512.5,3.80988782]
[1718939106773,1.77064993,3514.1,3512.5,3.80988782]
[1718939106978,2.07053885,3514.0,3512.5,3.80988782]
[1718939107158,2.07053885,3514.0,3512.8,2.4839]
[1718939107359,1.35945729,3514.6,3513.2,2.4839]
[1718939107572,2.2767,3514.9,3513.3,0.45909]
[1718939107573,2.07029538,3514.5,3513.3,0.45909]
[1718939107748,2.07029538,3514.4,3513.2,2.4839]
[1718939107952,1.35945729,3514.7,3513.2,5.4839]
[1718939108181,2.07022597,3514.6,3513.2,5.4839]
[1718939108679,2.07022597,3514.5,3513.2,5.4839]
[1718939108969,1.35945729,3514.8,3513.2,5.4839]
[1718939108970,0.36361573,3514.7,3513.2,5.4839]
[1718939109144,2.07020947,3514.6,3513.2,5.4839]
[1718939110461,0.36361573,3514.7,3513.2,5.4839]
[1718939110793,0.29229068,3514.6,3513.2,5.4839]
[1718939111770,3.78438633,3514.5,3513.2,5.4839]
[1718939112081,2.07038633,3514.4,3513.3,3.0]
[1718939112384,2.07038633,3514.4,3513.2,2.4839]
[1718939112385,2.56338554,3514.4,3513.2,2.4839]
[1718939112563,2.8740133,3514.3,3513.2,2.4839]
[1718939112769,2.07038633,3514.2,3513.2,2.4839]
[1718939113283,0.80362697,3514.3,3513.2,2.4839]
[1718939114001,2.51762697,3514.3,3513.1,3.0]
[1718939114283,2.85414358,3514.2,3513.1,3.0]
[1718939115274,0.43704358,3514.2,3513.1,3.0]
[1718939115479,1.714,3514.4,3513.1,3.0]
[1718939115684,2.07051936,3514.3,3513.1,3.0]
[1718939116346,3.07373391,3514.5,3513.1,3.0]
[1718939116545,3.92330345,3514.4,3513.1,3.0]
[1718939116778,1.714,3514.5,3513.1,3.0]
[1718939116980,0.57831505,3514.4,3513.1,3.0]
[1718939117588,1.07127761,3514.4,3513.1,3.0]
[1718939117877,0.57831505,3514.4,3513.1,3.0]
[1718939118299,2.4310462,3514.4,3513.1,3.0]
[1718939119177,0.49297566,3514.3,3513.1,3.0]
[1718939119381,0.41451187,3514.2,3513.1,3.0]
[1718939120458,0.41451187,3514.2,3513.2,2.399]
[1718939120782,1.35982802,3514.5,3513.2,2.399]
[1718939120956,2.1450601,3514.6,3513.2,2.399]
[1718939121350,1.35982802,3514.5,3513.2,2.399]
[1718939121552,0.78523208,3514.6,3513.2,2.399]
[1718939121553,2.1450601,3514.6,3513.2,2.399]
[1718939121758,1.6521187,3514.6,3513.2,2.399]
[1718939121979,0.4929414,3514.9,3513.3,1.4876]
[1718939121980,0.16521187,3514.5,3513.3,1.4876]
[1718939122185,1.35982802,3514.7,3513.3,4.4876]
[1718939122387,1.35917535,3514.7,3513.3,4.4876]
[1718939122599,1.35917535,3514.6,3513.3,4.4876]
[1718939122803,1.35917535,3514.6,3513.5,2.3153]
[1718939122956,1.35917535,3514.7,3513.5,5.3153]
[1718939123385,1.35917535,3514.6,3513.5,5.3153]
[1718939124180,1.35917535,3514.7,3513.5,7.4223]
[1718939124404,1.35917535,3514.5,3513.6,0.980926]
[1718939124551,1.35917535,3514.5,3513.6,3.0]
[1718939125458,1.714,3514.9,3513.5,5.3153]
[1718939125687,1.35916558,3514.1,3513.5,5.3153]
[1718939126351,1.35916558,3513.9,3513.5,5.3153]
[1718939127004,1.35916558,3513.8,3513.5,3.0]
[1718939127468,1.35916558,3513.6,3513.5,3.0]
[1718939127859,1.35916558,3513.6,3513.1,2.2823]
[1718939128055,1.35916558,3513.6,3513.1,3.54753]
[1718939128251,1.35916558,3513.6,3513.2,3.0]
[1718939128452,1.35904844,3513.6,3513.2,3.0]
[1718939128686,0.76464365,3513.6,3513.2,3.0]